Cogmind - Beta 15 @@@ ROGUE MODE // 2025.06.06 @ 23:26:53 Player: Duduxx Result: Destroyed by VR-5GF(R) with Subdweller Machine Gun Performance ------------- Evolutions (0) 0 Regions Visited (3) 600 Robots Destroyed (19) 95 Value Destroyed (452) 452 Prototype IDs (1) 20 Alien Tech Used (0) 0 Bonus (0) 0 TOTAL SCORE: 1167 Bonus ------- None Cogmind --------- Core Integrity 0/250 Matter 290/300 Energy 200/200 System Corruption 3% Temperature Cool (0) Movement Core (250) Ox4 Location -10/Subcaves Parts ------- > --- POWER (1) -------- Subdweller Power Source > --- PROPULSION (2) --- (None) > --- UTILITY (2) ------ Small Storage Unit Structural Scanner > --- WEAPON (2) ------- Makeshift Sword > --- INVENTORY (8) ---- Ion Engine Ion Engine Mining Laser Mining Claw Peak State ------------ > --- POWER ------------ Subdweller Power Source Subdweller Power Source > --- PROPULSION ------- Makeshift Leg Wheel > --- UTILITY ---------- Small Storage Unit Structural Scanner > --- WEAPON ----------- Powered Cannon > --- INVENTORY -------- Ion Engine Ion Engine Subdweller Monowheel Mining Laser Mining Claw Makeshift Sword [Rating: 26] Favorites ----------- Power Light Ion Engine Engine Light Ion Engine Propulsion Light Treads Treads Light Treads Leg Makeshift Leg Wheel Wheel Utility Small Storage Unit Device Seismic Detector Storage Small Storage Unit Weapon Assault Rifle Energy Cannon Powered Cannon Ballistic Gun Assault Rifle Launcher Grenade Launcher Slashing Weapon Mining Claw Build | -11 -10 -10 -10 ------- Run | Yrd Mat Min Sub Slots Evolved . | . . . . Power . | . . . . Propulsion . | . . . . Utility . | . . . . Weapon . | . . . . Parts Attached 18 | 7 . . 11 Power 3 | 1 . . 2 Engine 3 | 1 . . 2 Core . | . . . . Reactor . | . . . . Propulsion 6 | 2 . . 4 Treads 2 | 2 . . . Leg 1 | . . . 1 Wheel 3 | . . . 3 Hover . | . . . . Flight . | . . . . Utility 3 | 2 . . 1 Device 2 | 1 . . 1 Storage 1 | 1 . . . Processor . | . . . . Hackware . | . . . . Protection . | . . . . Artifact . | . . . . Weapon 6 | 2 . . 4 Energy Gun . | . . . . Energy Cannon 1 | . . . 1 Ballistic Gun 2 | 2 . . . Ballistic Cannon . | . . . . Launcher 1 | . . . 1 Special Weapon . | . . . . Impact Weapon . | . . . . Slashing Weapon 2 | . . . 2 Piercing Weapon . | . . . . Special Melee Weapon . | . . . . Unidentified Prototypes 1 | . . . 1 Parts Lost 12 | . . . 12 Power 1 | . . . 1 Propulsion 6 | . . . 6 Utility 1 | . . . 1 Weapon 4 | . . . 4 Highest Loss Streak 6 | . . . 6 To Critical Strikes 1 | . . . 1 Average Backups 5 | 3 5 7 5 Power 1 | . 1 2 2 Propulsion 1 | 1 2 2 . Utility . | . . 1 . Weapon 1 | . 1 2 2 Tool/Special . | . . . . Unused Backups 3 | . . . 3 Power 2 | . . . 2 Propulsion . | . . . . Utility . | . . . . Weapon 1 | . . . 1 Tool/Special . | . . . . Average Slot Usage (%) 93 | . 100 100 87 Engine 18 | . 14 14 21 Treads 16 | . 28 28 7 Leg 2 | . . . 4 Wheel 7 | . . . 13 Device 12 | . 14 14 10 Storage 13 | . 14 14 12 Energy Cannon 4 | . . . 8 Ballistic Gun 16 | . 28 28 7 Peak Build Rating 26 | 7 7 7 26 Average Rating 12 | 5 6 7 18 On Entrance 5 | . 7 7 7 Naked Turns . | . . . . Heaviest Build 25 | 12 12 12 25 Greatest Support 40 | 40 40 40 40 Greatest Overweight (x) 1 | . . . 1 Average Overweight (x) . | . . . . Largest Inventory Capacity 8 | 8 8 8 8 Average Capacity 7 | 7 8 8 8 Most Carried 8 | 4 6 8 8 Average Carried 5 | 3 5 7 5 Final Capacity 8 | 8 8 8 8 Final Carried 8 | 4 6 8 4 Class Distribution -------------------- 100% | Mutant Dominant Class ---------------- Mutant | -10/Materials Mutant | -10/Mines Mutant | -10/Subcaves Resources | -11 -10 -10 -10 ----------- Run | Yrd Mat Min Sub Matter Collected 582 | 298 26 93 165 Remotely . | . . . . Salvage Created 562 | 162 44 47 309 Parts 38 | 11 4 7 16 Haulers Intercepted . | . . . . Recyclers Shooed 1 | 1 . . . Parts Field Recycled . | . . . . Retrieved Matter . | . . . . Parts Self-Destructed 6 | . . . 6 Prevented . | . . . . Kills | -11 -10 -10 -10 ------- Run | Yrd Mat Min Sub Combat Hostiles Destroyed 15 | . 3 3 9 Melee 1 | . . . 1 Guns 9 | . 3 3 3 Cannons 5 | . . . 5 Classes Destroyed 5 | 2 1 . 2 Tunneler 3 | 3 . . . Recycler 1 | 1 . . . Swarmer 6 | . 3 3 . Sentry 1 | . . . 1 Subdweller 8 | . . . 8 Best Kill Streak 4 | 3 3 3 4 Combat Bots Only 4 | . 3 3 4 Max Kills in Single Turn 1 | 1 1 1 1 Gunslinging . | . . . . Exploded . | . . . . Melee 1 | . . . 1 Uniques/NPCs Destroyed . | . . . . Combat | -11 -10 -10 -10 -------- Run | Yrd Mat Min Sub Hostile Shots Fired 94 | . 14 28 52 Missed 22 | . 3 7 12 Hits 72 | . 11 21 40 Projectile 72 | . 11 21 40 AOE 2 | . . . 2 Critical Strikes 1 | . . . 1 Damage Taken 1212 | . 82 171 959 Core 259 | . 6 34 219 Absorbed by Shields . | . . . . Core Remaining (%) 100 | 100 . . . Volleys Fired 63 | 11 9 11 32 Largest 2 | 2 2 2 2 Hottest 50 | 40 40 40 50 Shots Fired 101 | 22 18 22 39 Gun 74 | 22 18 22 12 Cannon 22 | . . . 22 Launcher 5 | . . . 5 Special . | . . . . Kinetic 74 | 22 18 22 12 Thermal 22 | . . . 22 Explosive 5 | . . . 5 Electromagnetic . | . . . . Robot Hit Streak 10 | 6 5 6 10 Robot Miss Streak 4 | 2 4 4 2 Penetration Max . | . . . . Secondary Targets 3 | . 2 1 . Max Gunslinging Chain 1 | . 1 1 . Shots Hit Robots 65 | 13 8 13 31 Core Hits 25 | 6 4 3 12 Critical Kills 1 | . . . 1 Critical Parts Destroyed . | . . . . Critical Strikes 1 | . . . 1 Destroy 1 | . . . 1 Melee Attacks 4 | . . . 4 Impact . | . . . . Slashing 4 | . . . 4 Piercing . | . . . . Sneak Attacks . | . . . . Combat Hostiles . | . . . . Follow-up Attacks . | . . . . Damage Inflicted 1482 | 129 86 133 1134 Guns 480 | 129 86 133 132 Cannons 680 | . . . 680 Explosions 207 | . . . 207 Melee 115 | . . . 115 Ramming . | . . . . Kinetic 480 | 129 86 133 132 Thermal 680 | . . . 680 Explosive 207 | . . . 207 Electromagnetic . | . . . . Impact . | . . . . Slashing 115 | . . . 115 Piercing . | . . . . Highest Corruption 3 | . 3 3 3 Average Corruption 2 | . 2 3 3 Corruption Purged . | . . . . Corruption Blocked . | . . . . Effects 14 | . 1 4 9 Message Errors 2 | . . . 2 Matter Fused 6 | . . 1 5 Energy Discharges 2 | . . 1 1 Data Loss (minor) 3 | . 1 2 . Data Loss (major) 1 | . . . 1 Overload Shots . | . . . . Overflow Damage 6 | . . . 6 Projectiles . | . . . . Explosions 6 | . . . 6 Melee . | . . . . Knockbacks . | . . . . Impact . | . . . . Kinetic . | . . . . Secondary . | . . . . Self-Inflicted Damage 32 | . . . 32 Shots 1 | . . . 1 Rammed . | . . . . Targets Rammed . | . . . . Kicked . | . . . . Crushed . | . . . . Highest Temperature 19 | . . . 19 Average Temperature 8 | . . . 8 Received Heat Transfer 225 | . . . 225 Siege Activations . | . . . . Martial Activations . | . . . . Shielding Activations . | . . . . Robots Disrupted . | . . . . Combat Hostiles . | . . . . Robots Corrupted . | . . . . Combat Hostiles . | . . . . Parts Fried . | . . . . Impact Corruptions . | . . . . Robots Melted . | . . . . Combat Hostiles . | . . . . Parts Melted 3 | . . . 3 Heat Transferred . | . . . . Parts Sabotaged . | . . . . Parts Stolen . | . . . . Parts Stripped . | . . . . Power Chain Reactions . | . . . . Alert | -11 -10 -10 -10 ------- Run | Yrd Mat Min Sub Maximum Alert Level . | . . . . Low Security (%) 100 | 100 100 100 . Level 1 . | . . . . Level 2 . | . . . . Level 3 . | . . . . Level 4 . | . . . . Level 5 . | . . . . High Security . | . . . . Max Security . | . . . . Peak Influence 70 | 5 70 50 . Initial . | . . . . Average 11 | . 16 10 . Influence Increases 180 | 20 70 70 20 Destroy 0b10 Robot/C 140 | . 60 60 20 Destroy 0b10 Robot/NC 20 | 20 . . . Destroy Leader 20 | . 10 10 . Influence Decreases 180 | 20 70 30 60 Entered New Map 21 | . . . 21 Time Decay 159 | 20 70 30 39 Squads Dispatched 1 | . 1 . . Investigation 1 | . 1 . . Extermination . | . . . . Reinforcement . | . . . . Assault . | . . . . Garrison . | . . . . Intercept . | . . . . Searches Triggered . | . . . . Construction Impeded . | . . . . Haulers Reinforced . | . . . . Active Scanning Responses . | . . . . Cargo Convoy Interrupts . | . . . . Stealth | -11 -10 -10 -10 --------- Run | Yrd Mat Min Sub Distress Signals . | . . . . Communications Jammed . | . . . . Distress Signals . | . . . . Times Spotted 19 | . 4 3 12 Peak Tracking Total 5 | . 3 3 5 Tactical Retreats . | . . . . Traps | -11 -10 -10 -10 ------- Run | Yrd Mat Min Sub Traps Triggered 4 | . 4 . . Indirectly . | . . . . Trap Hack Attempts . | . . . . Triggered . | . . . . Disarmed . | . . . . Reprogrammed . | . . . . Reused . | . . . . Traps Extracted . | . . . . Installed . | . . . . Triggered . | . . . . Machines | -11 -10 -10 -10 ---------- Run | Yrd Mat Min Sub Machines Disabled . | . . . . Max in Single Turn . | . . . . Machines Repaired . | . . . . Machines Dismantled . | . . . . Machines Sabotaged . | . . . . Overloaded Fab Kills . | . . . . Hacking | -11 -10 -10 -10 --------- Run | Yrd Mat Min Sub Machines Accessed 2 | . 2 . . Terminals 2 | . 2 . . Fabricators . | . . . . Repair Stations . | . . . . Recycling Units . | . . . . Scanalyzers . | . . . . Garrison Access . | . . . . Total Hacks 5 | . 5 . . Successful . | . . . . Failed 5 | . 5 . . Catastrophic 3 | . 3 . . Database Lockouts . | . . . . Manual 5 | . 5 . . Terminals 5 | . 5 . . Fabricators . | . . . . Repair Stations . | . . . . Recycling Units . | . . . . Scanalyzers . | . . . . Garrison Access . | . . . . Terminal Hacks . | . . . . Fabricator Hacks . | . . . . Repair Station Hacks . | . . . . Recycling Unit Hacks . | . . . . Scanalyzer . | . . . . Garrison Access Hacks . | . . . . Unauthorized Hacks . | . . . . Terminals . | . . . . Fabricators . | . . . . Repair Stations . | . . . . Recycling Units . | . . . . Scanalyzers . | . . . . Garrison Access . | . . . . Data Cores Recovered . | . . . . Used . | . . . . Hacking Detections 2 | . 2 . . Full Trace Events . | . . . . Feedback Events . | . . . . Feedback Blocked . | . . . . Robot Schematics Acquired . | . . . . Robots Built . | . . . . Authchips . | . . . . Time . | . . . . Total Robot Build Rating . | . . . . Part Schematics Acquired . | . . . . Parts Built . | . . . . Authchips . | . . . . Time . | . . . . Total Part Build Rating . | . . . . Parts Repaired . | . . . . Time . | . . . . Parts Recycled . | . . . . Recycled Matter . | . . . . Retrieved Matter . | . . . . Retrieved Components . | . . . . Parts Scanalyzed . | . . . . Part Schematics Acquired . | . . . . Parts Damaged . | . . . . Bothacking | -11 -10 -10 -10 ------------ Run | Yrd Mat Min Sub Used RIF Installer . | . . . . Robots Hacked . | . . . . Non-combat . | . . . . Combat . | . . . . Robot Hacks Applied . | . . . . Relay Couplers Released . | . . . . Fabnet Peak Effective % . | . . . . Robots Rewired . | . . . . Allies Hacked . | . . . . Hacks Repelled . | . . . . Allies | -11 -10 -10 -10 -------- Run | Yrd Mat Min Sub Total Allies . | . . . . Largest Group . | . . . . Highest-Rated Group . | . . . . Highest-Rated Ally . | . . . . Total Orders . | . . . . Ally Attacks . | . . . . Total Damage . | . . . . Kills . | . . . . Allies Corrupted . | . . . . Allies Melted . | . . . . Intel | -11 -10 -10 -10 ------- Run | Yrd Mat Min Sub Active Infowar (turns) 1066 | 16 301 218 531 Structural 391 | . . . 391 Seismic 675 | 16 301 218 140 Robot Analysis Total . | . . . . Derelict Logs Recovered 1 | . . 1 . Drone Launches . | . . . . Drone Recoveries . | . . . . Exploration | -11 -10 -10 -10 ------------- Run | Yrd Mat Min Sub Turns Passed 1287 | 146 301 218 622 Spaces Moved 731 | 67 170 112 382 Core 5 | 5 . . . Treads 425 | 62 170 112 81 Legs 102 | . . . 102 Wheels 199 | . . . 199 Hover . | . . . . Flight . | . . . . Fastest Speed 50 | 50 160 160 80 Average Speed 147 | 151 160 160 137 Slowest Speed 210 | 160 160 160 210 Overloaded Moves . | . . . . Propulsion Burnouts . | . . . . Robots Hopped . | . . . . Potential Cave-ins . | . . . . Cave-ins Triggered . | . . . . Exploration Rate (%) 26 | 5 42 26 33 Regions Visited 3 Branch Regions 2 Pre-discovered Areas . | . . . . Known Exits Taken . | . . . . Unknown Exits Taken 3 | 1 1 1 . Scrap Searched 4 | . . 1 3 Spaces Dug . | . . . . Terrain Destroyed 19 | . . . 19 Melee . | . . . . Projectile 2 | . . . 2 AOE 17 | . . . 17 Terrain Rammed . | . . . . Walls Destroyed . | . . . . Machines Disabled . | . . . . Actions | -11 -10 -10 -10 --------- Run | Yrd Mat Min Sub Total 836 | 88 182 131 435 Wait 10 | . . 7 3 Move 728 | 66 169 111 382 Hop . | . . . . Pick Up 10 | 4 2 2 2 Fast Attach 13 | 7 2 . 4 Attach 7 | . . . 7 Detach 1 | . . . 1 Swap . | . . . . Drop . | . . . . Fire 63 | 11 9 11 32 Melee 4 | . . . 4 Ram . | . . . . Kick . | . . . . Crush . | . . . . Escape Stasis . | . . . . Rewire . | . . . . Trap . | . . . . Miscellaneous . | . . . . Route ------- -11/Scrapyard -10/Materials (discovered 2 exits: [*Mat] / [*Min]) -10/Mines (discovered 2 exits: [*Mat] / [*Sub]) -10/Subcaves History --------- Turn | Location | Event 12 | -11/Scrapyard | Discovered new exit (range 15) 147 | -11/Scrapyard | Entered Materials 304 | -10/Materials | Build established: Mutant 327 | -10/Materials | Discovered new exit (range 16) 432 | -10/Materials | Discovered new exit (range 9) 448 | -10/Materials | Entered Mines 460 | -10/Mines | YI-UF0 nonchalantly dropped a Grenade Launcher on the ground 484 | -10/Mines | Learned 4 Materials zone layouts 539 | -10/Mines | Found DCF Scrap (14 items) 627 | -10/Mines | Discovered new exit (range 8) 639 | -10/Mines | Discovered new exit (range 12) 666 | -10/Mines | Entered Subcaves 667 | -10/Subcaves | Approached by a straggling Scientist 795 | -10/Subcaves | A Subdweller sparked back to life 795 | -10/Subcaves | A Subdweller sparked back to life 795 | -10/Subcaves | A Subdweller sparked back to life 827 | -10/Subcaves | Core integrity fell below 50% 836 | -10/Subcaves | Found Prototype Energy Cannon 836 | -10/Subcaves | Identified Powered Cannon 837 | -10/Subcaves | Attached Powered Cannon, gained temporary slot: Power 853 | -10/Subcaves | Lost 6 parts (2n1u3w) 873 | -10/Subcaves | A swath of the cavern ceiling suddenly collapsed 904 | -10/Subcaves | Core integrity fell below 20% 984 | -10/Subcaves | Shifting Twisted Machinery released Sub. Machine Gun 987 | -10/Subcaves | Shifting Twisted Machinery released Battle Cannon 1177 | -10/Subcaves | Shifting Twisted Machinery released Piercing Trap 1278 | -10/Subcaves | Shifting Twisted Machinery released Battle Cannon 1288 | -10/Subcaves | Destroyed by VR-5GF(R) with Subdweller Machine Gun Last Messages --------------- 01062_ Acquired 52 matter. 01062_ Searching scrap... 01062_ Found Mak. Light Armor Plating. 01062_ Found Mak. Sword. 01062_ Found 31 Matter. 01065_ Acquired Mak. Sword. 01069_ Acquired Sub. Power Source. 01083_ Acquired Sub. Monowheel. 01115_ 1/TFRXV>YB<,EAQGC0VROS6LN6B:KL >B7>EO Piercing Trap falls loose from the Twisted Machinery. 01212_ NLX=VBP5 ERP|EGODCT&AHD 01266_ System corrupted: Energy discharge (-93). Battle Cannon falls loose from the Twisted Machinery. 01281_ Powered Cannon destroyed. 01281_ Mak. Leg destroyed. 01282_ Temporary Power slot lost. 01284_ Wheel destroyed. 01287_ Sub. Monowheel destroyed. Map ----- +----------------------------------------------------+ | #### #=&"###???????????????????????????????????? | | ### ##%"###???????????????????????????????????? | | # #!"" ##???????????????????????????????????? | | ## " ###???????????????????????????????????? | | ### # ##???????????????????????????????????? | | ### ##???????????????????????????????????? | | ### ##???????????????????????????????????? | | ## # ###???????????????????????????????????? | | # ###???????????????????????????????????? | | ##????????????????????????????????????? | | ##????????????????????????????????????? | | #######????????????????????????????????????? | | #######????????????????????????????????????? | | #######????????????????????????????????????? | | ## ######????????????????????????????????????? | | ### ### ##?####???????????????????????????????? | | ### #######???????????????????????????????? | | ### #### #####????####?? ##???????????????? | | ### #############?? ##???????????????? | | ### ###"#######"##"" # ???????????????? | | ## ### """"## "###" ##???????????????? | | ## #####"" #"""# ""#"""##???????????????? | | ####"" ###"""] "" "???????????????????? | | # ####" #### R ????????????????????? | | # ## ###""& " ####;R ##????????????????????? | | #### " "" "" ###@ ##????????????????????? | | ##### """" "### ; ???????????????? | | #?#### #"" ######### ### # ???????????????? | | ???################# ### #######???????????????? | | ????##########????###########?####???????????????? | | ??????????????????###########????????????????????? | | ?????????????????????????????????????????????????? | | ?????????????????????????????????????????????????? | | ?????????????????????????????????????????????????? | | ?????????????????????????????????????????????????? | | ?????????????????????????????????????????????????? | | ?????????????????????????????????????????????????? | | ?????????????????????????????????????????????????? | | ?????????????????????????????????????????????????? | | ?????????????????????????????????????????????????? | | ?????????????????????????????????????????????????? | | ?????????????????????????????????????????????????? | | ?????????????????????????????????????????????????? | | ?????????????????????????????????????????????????? | | ?????????????????????????????????????????????????? | | ?????????????????????????????????????????????????? | | | | | | | | | +----------------------------------------------------+ Best States ------------- Heat Dissipation 25 Energy Generation 25 Energy Capacity 300 Matter Stores 300 Matter Capacity 300 Sight Range 16 Terrain Scan Density 10 Evasion (%) 45 Recoil Reduction 2 Item Schematics ----------------- None Robot Schematics ------------------ None Fabricated ------------ Nothing Repaired ---------- Nothing Alien Tech Used ----------------- None Achievements -------------- None Challenges ------------ None Game ------ Seed VampiricVortexEngine Manual? 0 Play Time 00:11:58 Cumulative 107.6 hours Start 2025.06.06 @ 23:18:57 End 2025.06.06 @ 23:26:53 Sessions 1 Manual Loads 0 Difficulty Rogue Special Mode None Game No. 209 Rogue 209 Adventurer 0 Explorer 0 Win Type - Total 0 Types 0/0/0/0/0/0/0/0/0/0 Lore% 26 Gallery% 44 Achievement% 35 Wizard Run 0 Options --------- Layout 1 ASCII 0 Keyboard 1 Movement Arrows Keybinds 0 Fullscreen 2 Font 24/Smallcaps Map View 50x35 Zoom Use 0% Tactical HUD 1 Map Filters NONE Filters NONE Steam 1 RUN: e42dea6d-2495-4e87-af84-bfbc8540d9d8